bitfinex-derivatives/quotes_ETHF0:USTF0_20250503
["timestamp","ask_amount","ask_price","bid_price","bid_amount"]
[1746309803743,12.22159824,1840.0,1839.9,1.27135861]
[1746309804243,12.22159824,1840.0,1839.9,4.98935861]
[1746309805146,14.18355199,1840.0,1839.9,15.84915861]
[1746309807347,14.18355199,1840.0,1839.9,4.98935861]
[1746309807645,15.78495199,1840.0,1839.9,4.98935861]
[1746309808751,6.58894514,1840.0,1839.9,15.84915861]
[1746309809251,6.58894514,1840.0,1839.9,3.718]
[1746309810253,1.08674,1839.9,1839.8,1.6353]
[1746309810549,2.70424,1839.9,1839.8,12.4951]
[1746309811154,2.70424,1839.9,1839.8,16.2131]
[1746309811749,18.21796546,1839.9,1839.8,16.2131]
[1746309813556,18.21796546,1839.9,1839.8,17.2999]
[1746309813854,18.21796546,1839.9,1839.8,16.2131]
[1746309815153,9.02195861,1839.9,1839.8,16.2131]
[1746309818249,8.32889347,1839.9,1839.8,16.2131]
[1746309819253,8.68846438,1839.9,1839.8,16.2131]
[1746309819560,8.68846438,1839.9,1839.8,17.2999]
[1746309819561,8.32889347,1839.9,1839.8,17.2999]
[1746309820057,8.32889347,1839.9,1839.8,16.2131]
[1746309821158,18.12560295,1839.9,1839.8,16.2131]
[1746309821355,18.12560295,1839.9,1839.8,9.28240115]
[1746309821856,21.33340295,1839.9,1839.8,9.28240115]
[1746309822059,22.98490295,1839.9,1839.8,9.28240115]
[1746309822554,22.98490295,1839.9,1839.8,10.36920115]
[1746309822950,21.33340295,1839.9,1839.8,10.36920115]
[1746309824259,21.33340295,1839.9,1839.8,9.28240115]
[1746309824455,21.33340295,1839.9,1839.8,10.94600115]
[1746309825359,21.33340295,1839.9,1839.8,12.03280115]
[1746309825562,22.99880295,1839.9,1839.8,10.94600115]
[1746309826061,15.75664948,1839.9,1839.8,10.94600115]
[1746309826561,15.75664948,1839.9,1839.8,12.03280115]
[1746309826761,14.09124948,1839.9,1839.8,12.03280115]
[1746309828061,13.00450948,1839.9,1839.8,12.03280115]
[1746309829166,14.09124948,1839.9,1839.8,12.03280115]
[1746309829470,13.00450948,1839.9,1839.8,12.03280115]
[1746309830363,3.2078,1839.9,1839.8,12.03280115]
[1746309830567,4.29454,1839.9,1839.8,12.03280115]
[1746309830769,4.29454,1839.9,1839.8,10.94600115]
[1746309830970,4.29454,1839.9,1839.8,5.3816]
[1746309831269,4.65404907,1839.9,1839.8,5.3816]
[1746309831476,5.86644,1839.9,1839.8,5.3816]
[1746309833077,6.22599277,1839.9,1839.8,5.3816]
[1746309834077,16.02270225,1839.9,1839.8,5.3816]
[1746309834470,15.66314948,1839.9,1839.8,5.3816]
[1746309834779,15.66314948,1839.9,1839.8,10.94600115]
[1746309836273,15.66314948,1839.9,1839.8,3.718]
[1746309836475,15.66314948,1839.9,1839.6,1.3487]
[1746309836476,1.08686,1839.7,1839.6,1.3487]
[1746309836779,4.65415573,1839.7,1839.6,1.3487]
[1746309836970,4.6541337,1839.7,1839.6,1.3487]
[1746309837776,4.6541337,1839.7,1839.6,3.04]
[1746309838774,4.6541337,1839.7,1839.5,3.718]
[1746309838775,1.08692,1839.6,1839.5,3.718]
[1746309839071,6.44704853,1839.6,1839.5,3.718]
[1746309839278,1.08709,1839.3,1839.2,5.1279]
[1746309839579,4.65421853,1839.3,1839.2,5.1279]
[1746309839766,4.65421853,1839.3,1839.2,10.69230115]
[1746309840171,1.08727,1839.0,1838.9,25.69822913]
[1746309840378,4.65439853,1839.0,1838.9,26.78555913]
[1746309840570,3.56712853,1839.0,1838.9,33.94096028]
[1746309841079,3.56712853,1839.0,1838.9,37.65896028]
[1746309841383,4.65439853,1839.0,1838.9,14.61864742]
[1746309841582,4.65295669,1839.0,1838.9,14.61864742]
[1746309841975,6.40245669,1839.0,1838.9,14.61864742]
[1746309842281,8.12645669,1839.0,1838.9,14.61864742]
[1746309842768,8.12645669,1839.0,1838.9,3.718]
[1746309843173,1.08739,1838.8,1838.7,1.6797]
[1746309843480,4.65307669,1838.8,1838.7,7.24410115]
[1746309843875,4.65307669,1838.8,1838.7,10.53060115]
[1746309844072,4.65307669,1838.8,1838.7,14.24860115]
[1746309844274,4.65144736,1838.8,1838.7,5.3977]
[1746309844575,4.65144736,1838.8,1838.7,3.718]
[1746309844775,4.65144736,1838.8,1838.7,9.28240115]
[1746309845079,4.65159014,1838.8,1838.7,9.28240115]
[1746309845281,4.65159014,1838.8,1838.7,3.718]
[1746309845673,6.31249014,1838.8,1838.7,3.718]
[1746309846275,1.08751,1838.6,1838.5,15.85144742]
[1746309846584,1.08751,1838.6,1838.5,16.46504857]
[1746309846585,4.29531,1838.6,1838.5,16.46504857]
[1746309846878,1.08757,1838.5,1838.4,3.4036]
[1746309847074,1.08757,1838.5,1838.4,7.1216]
[1746309847278,2.75117,1838.5,1838.4,12.68600115]
[1746309849276,2.75117,1838.5,1838.4,3.718]
[1746309850782,2.75117,1838.5,1838.4,9.28240115]
[1746309850979,2.75117,1838.5,1838.4,11.06370115]
[1746309851279,3.2078,1838.6,1838.4,12.70840115]
[1746309851480,1.08757,1838.5,1838.4,5.4993]
[1746309851882,1.08757,1838.5,1838.4,11.06370115]
[1746309852078,2.72977,1838.5,1838.4,11.06370115]
[1746309852278,2.72977,1838.5,1838.4,9.28240115]
[1746309852473,2.72977,1838.5,1838.4,3.718]
[1746309852682,4.46427,1838.5,1838.4,3.718]
[1746309853184,1.08774,1838.2,1838.1,2.84455]
[1746309853386,3.2078,1838.2,1838.1,2.84455]
[1746309853577,3.2078,1838.2,1838.1,8.40895115]
[1746309854189,4.29554,1838.2,1838.1,7.32120115]
[1746309855883,6.05424,1838.2,1838.1,7.32120115]
[1746309856282,3.2078,1838.2,1838.1,7.32120115]
[1746309856478,3.2078,1838.2,1838.1,8.40900115]
[1746309857085,4.29554,1838.2,1838.1,7.32120115]
[1746309858385,4.29554,1838.2,1838.1,8.40900115]
[1746309858886,3.2078,1838.2,1838.1,8.40900115]
[1746309859289,4.29554,1838.2,1838.1,8.40900115]
[1746309859490,3.2078,1838.2,1838.1,2.8446]
[1746309859789,3.2078,1838.2,1838.1,8.40900115]
[1746309859982,4.29554,1838.2,1838.1,7.32120115]
[1746309860182,4.29554,1838.2,1838.1,8.40900115]
[1746309861694,4.29554,1838.2,1838.1,7.32120115]
[1746309861991,4.29554,1838.2,1838.1,8.40900115]
[1746309862191,4.29554,1838.2,1838.1,7.32120115]
[1746309863292,1.0878,1838.1,1838.0,3.718]
[1746309864292,1.0878,1838.1,1838.0,4.80586]
[1746309864496,1.0878,1838.1,1838.0,10.37026115]
[1746309864887,4.29559,1838.2,1838.1,1.0878]
[1746309865196,4.29559,1838.2,1838.1,5.56440115]
[1746309865891,4.29559,1838.2,1838.1,7.37890115]
[1746309866394,4.65161462,1838.2,1838.1,3.21659971]
[1746309867596,1.0878,1838.1,1838.0,3.718]
[1746309867799,3.25342462,1838.1,1838.0,5.12009971]
[1746309868194,3.25342462,1838.1,1838.0,6.85319971]
[1746309868696,3.25414595,1838.1,1838.0,6.85319971]
[1746309870499,3.25442081,1838.1,1838.0,6.85319971]
[1746309872198,3.25442081,1838.1,1838.0,5.4511]
[1746309872391,3.25467851,1838.1,1838.0,5.4511]
[1746309872595,1.44507851,1838.1,1838.0,7.94105971]
[1746309872797,1.44507851,1838.1,1838.0,6.85319971]
[1746309873396,1.44507851,1838.1,1838.0,7.94105971]
[1746309873696,0.35727851,1838.1,1838.0,7.94105971]
[1746309875797,0.35124957,1838.1,1838.0,7.94105971]
[1746309876287,1.43904957,1838.1,1838.0,7.94105971]
[1746309876493,0.35124957,1838.1,1838.0,7.94105971]
[1746309877901,4.29559,1838.2,1838.1,1.0878]
[1746309878093,4.29559,1838.2,1838.1,4.29679971]
[1746309879201,4.29559,1838.2,1838.1,3.20899971]
[1746309879502,4.29559,1838.2,1838.1,4.29679971]
[1746309880406,4.29559,1838.2,1838.1,3.20899971]
[1746309880602,4.29559,1838.2,1838.1,4.29679971]
[1746309880901,4.29559,1838.2,1838.1,3.20899971]
[1746309881501,6.05819,1838.2,1838.1,1.8069]
[1746309881695,6.05819,1838.2,1838.1,2.8947]
[1746309882203,6.05819,1838.2,1838.1,1.8069]
[1746309882894,6.05819,1838.2,1838.1,3.20899971]
[1746309883797,6.05819,1838.2,1838.1,4.29679971]
[1746309884202,6.05819,1838.2,1838.1,3.20899971]
[1746309884697,6.05819,1838.2,1838.1,1.8069]
[1746309884891,4.9704,1838.2,1838.1,4.29679971]
[1746309885092,3.2078,1838.2,1838.1,4.29679971]
[1746309885706,6.80767643,1838.2,1838.1,4.29679971]
[1746309886003,1.0878,1838.1,1838.0,4.80583]
[1746309886205,9.57436643,1838.2,1838.0,10.20283]
[1746309886399,1.6789,1838.1,1838.0,10.20283]
[1746309886799,7.89546643,1838.2,1838.1,1.0878]
[1746309887003,7.89546643,1838.2,1838.1,3.22039971]
[1746309887004,9.57436643,1838.2,1838.1,3.22039971]
[1746309887201,9.57436643,1838.2,1838.1,1.8183]
[1746309887705,9.93206735,1838.2,1838.1,1.8183]
[1746309888605,12.4257124,1838.2,1838.1,1.8183]
[1746309889406,10.7468124,1838.2,1838.1,4.30819971]
[1746309889905,10.74702551,1838.2,1838.1,4.30819971]
[1746309890204,10.74702551,1838.2,1838.1,3.22039971]
[1746309890406,12.44192551,1838.2,1838.1,1.8183]
[1746309891207,12.44196757,1838.2,1838.1,1.8183]
[1746309892108,14.24190579,1838.2,1838.1,1.8183]
[1746309892407,14.24190579,1838.2,1838.1,2.9061]
[1746309892609,14.24190579,1838.2,1838.1,1.8183]
[1746309893107,14.24183734,1838.2,1838.1,1.8183]
[1746309894407,14.24183734,1838.2,1838.1,2.9061]
[1746309894603,14.24183734,1838.2,1838.1,1.8183]
[1746309894803,14.24183734,1838.2,1838.1,3.22039971]
[1746309895003,14.24186964,1838.2,1838.1,3.22039971]
[1746309895411,14.24186964,1838.2,1838.1,4.30819971]
[1746309896711,14.24189751,1838.2,1838.1,4.30819971]
[1746309897513,14.24189751,1838.2,1838.1,3.22039971]
[1746309898212,23.07482369,1838.2,1838.1,3.22039971]
[1746309898811,21.37992369,1838.2,1838.1,3.22039971]
[1746309899912,21.37992369,1838.2,1838.1,4.30819971]
[1746309900113,21.37992369,1838.2,1838.1,3.22039971]
[1746309900515,21.37992369,1838.2,1838.1,4.30819971]
[1746309901013,20.29213369,1838.2,1838.1,4.30819971]
[1746309901715,20.29228436,1838.2,1838.1,4.30819971]
[1746309902317,11.45935818,1838.2,1838.1,4.30819971]
[1746309902513,12.54709818,1838.2,1838.1,4.30819971]
[1746309902707,11.45935818,1838.2,1838.1,4.30819971]
[1746309903011,12.54709818,1838.2,1838.1,4.30819971]
[1746309903207,11.45935818,1838.2,1838.1,4.30819971]
[1746309903607,11.45929577,1838.2,1838.1,4.30819971]
[1746309903910,12.54703577,1838.2,1838.1,4.30819971]
[1746309904614,11.45929577,1838.2,1838.1,4.30819971]
[1746309905020,12.54703577,1838.2,1838.1,4.30819971]
[1746309905317,12.54699404,1838.2,1838.1,4.30819971]
[1746309905514,10.76526657,1838.2,1838.1,4.30819971]
[1746309905716,9.67752657,1838.2,1838.1,4.30819971]
[1746309907920,6.11173223,1838.2,1838.1,12.94919971]
[1746309908717,6.11173223,1838.2,1838.1,7.94919971]
[1746309909523,4.30541591,1838.2,1838.1,7.94919971]
[1746309913920,3.2078,1838.4,1838.3,1.08768]
[1746309914124,3.2078,1838.4,1838.3,6.20777971]
[1746309914822,3.2078,1838.4,1838.3,9.82127971]
[1746309917420,6.81950907,1838.6,1838.5,1.08757]
[1746309917626,3.61170907,1838.6,1838.5,2.48966971]
[1746309918023,3.61170907,1838.6,1838.5,4.29416971]
[1746309918224,6.81950907,1838.6,1838.5,8.01216971]
[1746309920622,3.2078,1838.6,1838.5,8.01216971]
[1746309921140,6.7319,1838.6,1838.5,4.80557]
[1746309921927,8.452,1838.6,1838.5,4.80557]
[1746309925726,12.23753446,1838.8,1838.7,1.08745]
[1746309925916,13.32492446,1838.8,1838.7,2.48954971]
[1746309926122,13.68211845,1838.8,1838.7,4.80545]
[1746309926428,15.44631845,1838.8,1838.7,4.80545]
[1746309927123,6.41659884,1838.8,1838.7,4.80545]
[1746309927728,6.65080791,1838.9,1838.7,4.80545]
[1746309927930,5.41802539,1839.0,1838.7,4.80545]
[1746309927931,5.41802539,1839.0,1838.9,1.08733]
[1746309928122,5.41802539,1839.0,1838.9,6.20742971]
[1746309928322,5.41802539,1839.0,1838.9,12.96842971]
[1746309928528,5.41802539,1839.0,1838.9,14.78692971]
[1746309928831,5.41802539,1839.0,1838.9,10.09510651]
[1746309929830,4.28712539,1839.0,1838.9,10.09510651]
[1746309930032,17.82121911,1839.3,1838.9,10.09510651]
[1746309930033,7.49492539,1839.5,1839.4,1.08703]
[1746309930230,7.49492539,1839.5,1839.4,4.80503]
[1746309932428,7.49492539,1839.5,1839.4,6.64113]
[1746309933433,3.2078,1839.5,1839.4,6.64113]
[1746309933734,3.2078,1839.5,1839.4,8.04322971]
[1746309934631,5.0674,1839.5,1839.4,8.04322971]
[1746309935829,3.2078,1839.5,1839.4,8.04322971]
[1746309936031,7.19975286,1840.1,1839.9,1.08674]
[1746309936032,1.8596,1840.0,1839.9,1.08674]
[1746309936331,7.19975286,1840.1,1840.0,4.30187971]
[1746309936534,8.99969107,1840.2,1840.1,1.08662]
[1746309936732,8.99969107,1840.2,1840.1,6.07741971]
[1746309936936,9.27150406,1840.2,1840.1,6.07741971]
[1746309937831,1.8596,1840.4,1840.3,1.0865]
[1746309937832,2.13141299,1840.4,1840.3,1.0865]
[1746309938132,0.27181299,1840.5,1840.4,1.08644]
[1746309938325,0.27181299,1840.5,1840.4,4.34653971]
[1746309938728,0.27181299,1840.5,1840.4,3.26009971]
[1746309939237,2.11901299,1840.5,1840.4,6.97809971]
[1746309939440,2.11901299,1840.5,1840.4,5.12009971]
[1746309939638,2.11901299,1840.5,1840.4,3.718]
[1746309939837,7.11901299,1840.5,1840.4,3.718]
[1746309941653,3.83741299,1840.5,1840.4,3.718]
[1746309942151,4.92379299,1840.5,1840.4,3.718]
[1746309942745,1.08656,1840.2,1839.7,3.2078]
[1746309943048,1.8561,1840.1,1840.0,2.48877971]
[1746309943244,1.8561,1840.1,1840.0,1.08668]
[1746309943444,0.27181299,1840.2,1840.1,1.08662]
[1746309943751,2.11981299,1840.2,1840.1,4.28331971]
[1746309944051,2.11981299,1840.2,1840.1,2.88122]
[1746309944657,2.11981299,1840.2,1840.1,4.28331971]
[1746309944950,0.27181299,1840.2,1840.1,4.28331971]
[1746309945144,3.47961299,1840.3,1840.1,4.97459971]
[1746309945350,1.35829299,1840.4,1840.2,3.19669971]
[1746309945552,5.32761299,1840.3,1840.2,1.7946]
[1746309945747,2.11981299,1840.3,1840.2,3.19669971]
[1746309946256,2.11981299,1840.3,1840.2,6.91469971]
[1746309946450,2.11981299,1840.3,1840.2,8.00125971]
[1746309946752,1.848,1840.3,1840.2,8.00125971]
[1746309947050,2.11981299,1840.3,1840.2,6.91469971]
[1746309947254,6.41411299,1840.3,1840.2,3.718]
[1746309947555,8.13271299,1840.3,1840.2,3.718]
[1746309948655,3.2078,1840.3,1840.2,5.12009971]
[1746309948856,3.24057299,1840.4,1840.2,5.12009971]
[1746309949154,6.44837299,1840.4,1840.3,1.8424]
[1746309950157,6.44837299,1840.4,1840.3,5.5604]
[1746309952360,1.35827299,1840.4,1840.3,6.96249971]
[1746309952856,1.36393021,1840.4,1840.3,6.96249971]
[1746309953859,1.36393021,1840.4,1840.3,8.04899971]
[1746309955363,0.27747021,1840.4,1840.3,8.04899971]
[1746309958655,0.00565722,1840.4,1840.3,8.04899971]
[1746309971167,1.36391021,1840.4,1840.3,8.04899971]
[1746309971377,1.09209722,1840.4,1840.3,8.04899971]
[1746309972573,0.00565722,1840.4,1840.3,8.04899971]
[1746309985479,0.27747021,1840.4,1840.3,8.04899971]
[1746309985970,1.36391021,1840.4,1840.3,3.718]
[1746309986170,8.13901021,1840.4,1840.3,3.718]
[1746309987174,7.05257021,1840.4,1840.0,2.89578]
[1746309987379,1.08662,1840.1,1840.0,2.89578]
[1746309987676,6.7135,1840.3,1839.9,1.08671]
[1746309987874,1.767,1840.0,1839.9,1.08671]
[1746309988075,1.767,1840.0,1839.9,4.80471]
[1746309988281,9.86419299,1840.0,1839.9,3.718]
[1746309989176,1.08674,1839.9,1839.8,7.19119296]
[1746309989378,10.07965299,1839.9,1839.8,7.19119296]
[1746309990377,1.08691,1839.7,1839.4,4.67609]
[1746309990574,1.803,1839.6,1839.5,2.48907971]
[1746309990774,3.6843,1839.6,1839.5,4.28377971]
[1746309991178,3.6843,1839.6,1839.5,8.00177971]
[1746309991681,1.7702,1839.8,1839.5,6.91479971]
[1746309991881,1.8813,1839.7,1839.6,2.88158]
[1746309997985,2.15311299,1839.7,1839.6,2.88158]
[1746310001289,3.23997299,1839.7,1839.6,2.88158]
[1746310001485,2.15311299,1839.7,1839.6,2.88158]
[1746310001886,0.27181299,1839.7,1839.6,2.88158]
[1746310003392,1.35865299,1839.8,1839.7,1.08686]
[1746310003582,1.35865299,1839.8,1839.7,6.28265971]
[1746310003782,1.35865299,1839.8,1839.7,4.88056]
[1746310004189,1.35865299,1839.8,1839.7,8.59856]
[1746310004791,1.35865299,1839.8,1839.7,10.00065971]
[1746310008097,1.35865299,1839.8,1839.7,8.91379971]
[1746310010096,1.35865299,1839.8,1839.7,5.19579971]
[1746310011096,1.35865299,1839.8,1839.7,8.91379971]
[1746310017999,1.08684,1839.8,1839.7,10.00065971]
[1746310021005,4.29458,1839.9,1839.8,1.0868]
[1746310021209,4.56639299,1839.9,1839.8,3.25159971]
[1746310021508,4.29458,1839.9,1839.8,3.25159971]
[1746310021700,1.08678,1839.9,1839.8,3.25159971]
[1746310022107,1.08678,1839.9,1839.8,6.96959971]
[1746310024614,1.35859299,1839.9,1839.8,6.96959971]
[1746310025106,3.15639299,1839.9,1839.8,6.96959971]
[1746310026398,2.88458,1839.9,1839.8,6.96959971]
[1746310026602,3.15639299,1839.9,1839.8,6.96959971]
[1746310027507,3.15639299,1839.9,1839.8,3.718]
[1746310027806,1.08698,1839.5,1839.4,3.4835]
[1746310028006,1.08698,1839.5,1839.4,3.5242]
[1746310028212,1.08698,1839.5,1839.4,8.64429971]
[1746310028808,1.08698,1839.5,1839.4,9.73132971]
[1746310030910,5.29511299,1839.7,1839.5,1.08697]
[1746310031111,1.08695,1839.6,1839.5,6.20706971]
[1746310031503,1.08695,1839.6,1839.5,5.12009971]
[1746310031810,1.08695,1839.6,1839.5,6.20707971]
[1746310032312,5.678109,1839.8,1839.6,1.08692]
[1746310032512,6.764909,1839.8,1839.7,3.25389971]
[1746310033109,6.764909,1839.8,1839.7,6.97189971]
[1746310033611,8.56700767,1839.8,1839.7,6.97189971]
[1746310036713,11.77480767,1839.8,1839.7,6.97189971]
[1746310037215,12.46789197,1839.8,1839.7,6.97189971]
[1746310037404,12.46789197,1839.8,1839.7,8.82589971]
[1746310037815,12.46789197,1839.8,1839.7,9.91275971]
[1746310039317,12.46789197,1839.8,1839.7,8.82589971]
[1746310041816,11.38109197,1839.8,1839.7,9.91275971]
[1746310043116,9.58854302,1839.8,1839.7,9.91275971]
[1746310043322,9.31673003,1839.8,1839.7,9.91275971]
[1746310043812,10.40353003,1839.8,1839.7,9.91275971]
[1746310044415,10.40353003,1839.8,1839.7,8.82589971]
[1746310044823,10.67534302,1839.8,1839.7,8.82589971]
[1746310045821,10.67534302,1839.8,1839.7,9.91275971]
[1746310046320,7.46754302,1839.8,1839.7,9.91275971]
[1746310050323,6.38074302,1839.8,1839.7,9.91275971]
[1746310051028,7.46754302,1839.8,1839.7,9.91275971]
[1746310052125,6.38074302,1839.8,1839.7,9.91275971]
[1746310055328,7.46754302,1839.8,1839.7,9.91275971]
[1746310055527,6.38074302,1839.8,1839.7,9.91275971]
[1746310056027,6.38074302,1839.8,1839.7,11.71705971]
[1746310058429,6.10893003,1839.8,1839.7,11.71705971]
[1746310059231,3.61001678,1839.8,1839.7,11.71705971]
[1746310060931,3.88182977,1839.8,1839.7,11.71705971]
[1746310062734,0.27181299,1839.8,1839.7,11.71705971]
[1746310068734,0.27181299,1839.8,1839.7,10.31496]
[1746310069837,3.88182977,1839.9,1839.8,1.0868]
[1746310070032,3.88182977,1839.9,1839.8,6.0753]
[1746310070433,3.61001678,1839.9,1839.8,6.0753]
[1746310071134,3.61001678,1839.9,1839.8,13.4173]
[1746310073440,0.27181299,1840.0,1839.9,1.08674]
[1746310073639,0.27181299,1840.1,1840.0,1.08668]
[1746310073830,0.27181299,1840.1,1840.0,4.68068]
[1746310074126,0.27181299,1840.1,1840.0,9.80077971]
[1746310075639,0.27181299,1840.1,1840.0,13.00857971]
[1746310082440,0.27181299,1840.2,1840.1,1.08662]
[1746310082839,0.27181299,1840.2,1840.1,2.48871971]
[1746310085548,0.27181299,1840.3,1840.2,1.08656]
[1746310085738,0.27181299,1840.3,1840.2,2.48865971]
[1746310085934,1.98831299,1840.3,1840.2,2.48865971]
[1746310086140,1.98831299,1840.3,1840.2,6.20665971]
[1746310086847,3.07481299,1840.3,1840.2,6.20665971]
[1746310087048,1.98831299,1840.3,1840.2,6.20665971]
[1746310087947,3.07481299,1840.3,1840.2,5.12009971]
[1746310088144,9.72071299,1840.3,1840.2,3.718]
[1746310088348,0.27181299,1839.9,1839.6,7.19119296]
[1746310088648,1.35865299,1839.8,1839.6,8.27807296]
[1746310088849,3.16205299,1839.8,1839.7,1.08686]
[1746310089245,3.16205299,1839.8,1839.7,4.80486]
[1746310092647,4.92995299,1839.8,1839.7,4.80486]
[1746310093049,4.92995299,1839.8,1839.7,3.718]
[1746310096146,1.08696,1839.6,1839.4,1.08701]
[1746310096450,1.7679,1839.5,1839.4,1.08701]
[1746310096653,3.5182,1839.5,1839.4,1.08701]
[1746310096850,3.5182,1839.5,1839.4,2.48910971]
[1746310097146,4.60518,1839.5,1839.4,6.20710971]
[1746310097347,4.60518,1839.5,1839.4,4.80501]
[1746310097948,3.5182,1839.5,1839.4,4.80501]
[1746310102356,3.5182,1839.5,1839.4,6.69751]
[1746310102759,3.5182,1839.5,1839.4,8.09960971]
[1746310103457,4.60518,1839.5,1839.4,8.09960971]
[1746310103655,4.87699299,1839.5,1839.4,8.09960971]
[1746310104157,4.87699299,1839.5,1839.4,6.69751]
[1746310104860,4.87699299,1839.5,1839.4,3.718]
[1746310105164,1.08703,1839.4,1839.3,4.29489]
[1746310105357,2.85413,1839.4,1839.3,5.69698971]
[1746310106158,2.85413,1839.4,1839.3,9.41498971]
[1746310106359,2.85413,1839.4,1839.3,11.26668971]
[1746310106755,1.7671,1839.4,1839.3,11.26668971]
[1746310107255,1.7671,1839.4,1839.3,8.05888971]
[1746310107654,2.85413,1839.4,1839.3,8.05888971]
[1746310108454,1.7671,1839.4,1839.3,8.05888971]
[1746310108658,2.03891299,1839.4,1839.3,8.05888971]
[1746310112459,3.12594299,1839.4,1839.3,8.05888971]
[1746310112664,2.03891299,1839.4,1839.3,8.05888971]
[1746310113063,1.35884299,1839.4,1839.3,8.05888971]
[1746310113762,0.27181299,1839.4,1839.3,8.05888971]
[1746310114262,1.35884299,1839.4,1839.3,8.05888971]
[1746310114658,0.27181299,1839.4,1839.3,8.05888971]
[1746310117364,3.2078,1839.6,1839.5,1.08698]
[1746310117565,3.2078,1839.6,1839.5,2.48907971]
[1746310117964,4.29472,1839.6,1839.5,6.17437971]
[1746310118166,3.2078,1839.6,1839.5,9.89237971]
[1746310119067,4.29472,1839.6,1839.5,9.89237971]
[1746310119461,4.56653299,1839.6,1839.5,9.89237971]
[1746310123566,4.56653299,1839.6,1839.5,8.80539971]
[1746310124171,4.56653299,1839.6,1839.5,9.89237971]
[1746310125077,4.56653299,1839.6,1839.5,8.80539971]
[1746310126871,4.56653299,1839.6,1839.5,9.89237971]
[1746310132373,1.35873299,1839.6,1839.5,9.89237971]
[1746310132574,4.56653299,1839.6,1839.5,9.89237971]
[1746310133474,4.56653299,1839.6,1839.5,7.4033]
[1746310133676,6.42763299,1839.6,1839.5,5.5957]
[1746310133973,11.77023299,1839.6,1839.5,5.5957]
[1746310134178,11.77023299,1839.6,1839.5,1.8777]
[1746310135376,12.46341938,1839.6,1839.5,1.8777]
[1746310139470,29.95571693,1839.6,1839.5,1.8777]
[1746310139673,1.08703,1839.4,1839.3,1.7741]
[1746310139874,4.29483,1839.4,1839.3,1.7741]
[1746310140069,4.29483,1839.4,1839.3,6.89419971]
[1746310140677,4.56664299,1839.4,1839.3,3.718]
[1746310141169,1.08715,1839.2,1839.1,2.94611]
[1746310141375,1.08715,1839.2,1839.1,1.08721]
[1746310141576,1.08715,1839.2,1839.1,2.48930971]
[1746310142677,1.08715,1839.2,1839.1,4.23100971]
[1746310143778,1.08715,1839.2,1839.1,3.14379971]
[1746310144279,1.08715,1839.2,1839.1,4.23100971]
[1746310145185,7.19861116,1839.2,1839.1,4.23100971]
[1746310145882,7.19861116,1839.2,1839.1,3.14379971]
[1746310146375,7.19861116,1839.2,1839.1,4.23100971]
[1746310146781,6.11146116,1839.2,1839.1,4.23100971]
[1746310147181,7.19861116,1839.2,1839.1,4.23100971]
[1746310147776,7.19861116,1839.2,1839.1,3.14379971]
[1746310148684,10.67822415,1839.2,1839.1,3.14379971]
[1746310150079,12.42332415,1839.2,1839.1,3.14379971]
[1746310150877,1.35902299,1839.1,1839.0,1.7566]
[1746310151179,1.35902299,1839.1,1838.5,6.43689]
[1746310151180,1.08733,1838.9,1838.8,1.83]
[1746310151486,1.08733,1838.9,1838.5,1.40209971]
[1746310151487,1.08751,1838.6,1838.5,1.40209971]
[1746310151784,4.64010305,1838.6,1838.5,1.40209971]
[1746310152082,1.35938299,1838.5,1838.4,1.7546]
[1746310152389,1.70411992,1838.5,1838.4,1.7546]
[1746310152578,1.70411992,1838.5,1838.4,3.15669971]
[1746310153884,1.70359848,1838.5,1838.4,3.15669971]
[1746310154082,1.35938299,1838.5,1838.4,3.15669971]
[1746310156185,1.7031303,1838.5,1838.4,5.04379971]
[1746310156386,3.5857303,1838.5,1838.4,5.04379971]
[1746310157488,1.35938299,1838.5,1838.4,5.04379971]
[1746310159176,4.56718299,1838.5,1838.4,5.04379971]
[1746310159489,4.56718299,1838.5,1838.4,3.6417]
[1746310159785,4.91070941,1838.5,1838.4,1.8871]
[1746310159985,6.67610941,1838.5,1838.4,1.8871]
[1746310160184,6.33258299,1838.5,1838.4,1.8871]
[1746310163332,6.67610403,1838.5,1838.4,1.8871]
[1746310164585,6.67623729,1838.5,1838.4,1.8871]
[1746310169494,3.46843729,1838.5,1838.4,1.8871]
[1746310169697,6.67623729,1838.5,1838.4,1.8871]
[1746310169994,3.46864508,1838.5,1838.4,1.8871]
[1746310170198,6.67644508,1838.5,1838.4,1.8871]
[1746310170598,4.91104508,1838.5,1838.4,1.8871]
[1746310170898,4.91104508,1838.5,1838.4,3.28919971]
[1746310171801,4.9111508,1838.5,1838.4,3.28919971]
[1746310175391,4.91151037,1838.5,1838.4,3.28919971]
[1746310177304,4.91182587,1838.5,1838.4,3.28919971]
[1746310177807,2.99103299,1838.3,1837.7,5.92789]
[1746310177996,4.64018288,1838.2,1838.1,5.3525]
[1746310178401,4.64018288,1838.2,1838.1,6.75459971]
[1746310178802,4.91199587,1838.2,1838.1,6.75459971]
[1746310179408,4.91238192,1838.2,1838.1,6.75459971]
[1746310180705,4.56735299,1838.2,1838.1,6.75459971]
[1746310180900,4.91267843,1838.2,1838.1,6.75459971]
[1746310181406,4.91292772,1838.2,1838.1,6.75459971]
[1746310181808,4.56735299,1838.2,1838.1,6.75459971]
[1746310182008,4.91292082,1838.2,1838.1,6.75459971]
[1746310182810,4.56735299,1838.2,1838.1,6.75459971]
[1746310183111,4.91294067,1838.2,1838.1,6.75459971]
[1746310183507,4.56735299,1838.2,1838.1,6.75459971]
[1746310184110,4.91293923,1838.2,1838.1,6.75459971]
[1746310184407,4.91294896,1838.2,1838.1,6.75459971]
[1746310184705,4.91294896,1838.2,1838.1,5.3525]
[1746310184901,4.91294896,1838.2,1838.1,6.75459971]
[1746310187411,4.91286453,1838.2,1838.1,6.75459971]
[1746310191111,4.91283155,1838.2,1838.1,6.75459971]
[1746310192611,4.91283137,1838.2,1838.1,6.75459971]
[1746310196214,4.91283733,1838.2,1838.1,6.75459971]
[1746310197717,11.00798065,1838.2,1838.1,6.75459971]
[1746310198810,9.64842766,1838.2,1838.1,7.84239971]
[1746310199017,7.18288332,1838.2,1838.1,7.84239971]
[1746310199417,6.09514332,1838.2,1838.1,7.84239971]
[1746310201319,1.08774,1838.2,1838.1,7.84239971]
[1746310202314,1.08773,1838.3,1838.2,1.08771]
[1746310202517,1.08773,1838.3,1838.2,4.25180971]
[1746310203318,5.67327953,1838.4,1838.3,1.08768]
[1746310203319,6.48912654,1838.4,1838.3,1.08768]
[1746310203618,6.48912654,1838.4,1838.3,4.30527971]
[1746310204208,6.48912654,1838.4,1838.3,6.93559971]